fUSD/lending_fUSD_20251019
["ID","MTS","AMOUNT","RATE_DAILY","PERIOD"]
[391852687,1760914266164,-2500.0,0.000405,120]
[391852688,1760914266173,-2500.0,0.000405,120]
[391852689,1760914266182,-556.35816231,0.0004052,56]
[391852690,1760914266192,-172.31,0.00040552,60]
[391852691,1760914266201,-1091.0,0.00040658,5]
[391852692,1760914266212,-701.89041,0.00040688,30]
[391852693,1760914266221,-832.99243537,0.00040859,120]
[391852694,1760914266231,-701.89041,0.00040888,30]
[391852695,1760914266240,-153.0,0.000409,120]
[391852696,1760914266250,-150.0,0.00040993,2]
[391852697,1760914266259,-150.0,0.00040993,2]
[391852698,1760914266268,-2571.18153825,0.00041,30]
[391852699,1760914266277,-3023.31289894,0.00041,120]
[391852700,1760914266286,-231.02507039,0.00041,120]
[391852701,1760914266296,-2615.47636248,0.00041,120]
[391852702,1760914266305,-2358.64324909,0.00041,120]
[391852703,1760914266315,-1000.0,0.00041,120]
[391852704,1760914266324,-2224.0,0.00041,10]
[391852705,1760914266334,-2500.0,0.00041,120]
[391852706,1760914266343,-2500.0,0.00041,120]
[391852707,1760914266353,-308.82109804,0.00041067,2]
[391852708,1760914266362,-701.89041,0.00041088,30]
[391852709,1760914266371,-30000.0,0.00041096,120]
[391852710,1760914266380,-3221.76,0.00041096,120]
[391852711,1760914266389,-212.31365255,0.00041096,2]
[391852712,1760914266399,-490.0,0.00041096,2]
[391852713,1760914266408,-570.0,0.000411,2]
[391852714,1760914266417,-375.0,0.000411,2]
[391852715,1760914266427,-490.0,0.00041151,2]
[391852716,1760914266437,-490.0,0.00041206,2]
[391852717,1760914266447,-167.91,0.00041217,30]
[391852718,1760914266456,-542.25,0.00041217,30]
[391852719,1760914266465,-168.31,0.00041217,30]
[391852720,1760914266476,-168.31,0.00041217,30]
[391852721,1760914266485,-1199.86,0.00041217,30]
[391852722,1760914266494,-1199.86,0.00041217,30]
[391852723,1760914266503,-490.0,0.0004126,2]
[391852724,1760914266512,-701.89041,0.00041288,30]
[391852725,1760914266521,-832.99243537,0.00041308,120]
[391852726,1760914266530,-490.0,0.00041315,2]
[391852727,1760914266540,-490.0,0.0004137,2]
[391852728,1760914266549,-490.0,0.00041425,2]
[391852729,1760914266559,-490.0,0.0004148,2]
[391852730,1760914266567,-701.89041,0.00041488,30]
[391852731,1760914266577,-2500.0,0.000415,120]
[391852732,1760914266586,-2500.0,0.000415,120]
[391852733,1760914266595,-490.0,0.00041534,2]
[391852734,1760914266605,-490.0,0.00041589,2]
[391852735,1760914266615,-490.0,0.00041644,2]
[391852736,1760914266625,-701.89041,0.00041688,30]
[391852737,1760914266635,-3000.0,0.00041692,10]
[391852738,1760914266644,-490.0,0.00041699,2]
[391852739,1760914266658,-490.0,0.00041754,2]
[391852740,1760914266667,-832.99243537,0.00041757,120]
[391852741,1760914266677,-10030.6599693,0.000418,120]
[391852742,1760914266686,-490.0,0.00041808,2]
[391852743,1760914266695,-490.0,0.00041863,2]
[391852744,1760914266705,-1000.0,0.0004188,120]
[391852745,1760914266714,-701.89041,0.00041888,30]
[391852746,1760914266724,-490.0,0.00041918,2]
[391852747,1760914266733,-490.0,0.00041973,2]
[391852748,1760914266741,-50000.0,0.00042,42]
[391852749,1760914266751,-1000.0,0.00042,120]
[391852750,1760914266760,-2500.0,0.00042,120]
[391852751,1760914266770,-2500.0,0.00042,120]
[391852752,1760914266779,-490.0,0.00042028,2]
[391852753,1760914266789,-172.31,0.00042035,60]
[391852754,1760914266798,-490.0,0.00042082,2]
[391852755,1760914266807,-490.0,0.00042137,2]
[391852756,1760914266816,-600.0,0.00042191,60]
[391852757,1760914266825,-500.0,0.00042191,60]
[391852758,1760914266835,-170.51836466,0.00042191,60]
[391852759,1760914266844,-490.0,0.00042192,2]
[391852760,1760914266854,-832.99243537,0.00042206,120]
[391852761,1760914266864,-490.0,0.00042247,2]
[391852762,1760914266873,-200.0,0.00042253,8]
[391852763,1760914266883,-200.0,0.00042253,8]
[391852764,1760914266892,-490.0,0.00042301,2]
[391852765,1760914266902,-200.0,0.00042343,8]
[391852766,1760914266912,-200.0,0.00042355,8]
[391852767,1760914266921,-492.56697613,0.00042356,2]
[391852768,1760914266933,-200.0,0.00042408,8]
[391852769,1760914266943,-170.0,0.000425,23]
[391852770,1760914266952,-1201.55515746,0.000425,120]
[391852771,1760914266962,-2500.0,0.000425,120]
[391852772,1760914266972,-2500.0,0.000425,120]
[391852773,1760914266982,-200.0,0.0004251,120]
[391852774,1760914266991,-200.0,0.00042545,9]
[391852775,1760914267000,-200.0,0.00042652,9]
[391852776,1760914267013,-832.99243537,0.00042655,120]
[391852777,1760914267022,-200.0,0.00042667,9]
[391852778,1760914267031,-200.0,0.00042673,9]
[391852779,1760914267040,-200.0,0.00042677,9]
[391852780,1760914267050,-600.0,0.00042739,60]
[391852781,1760914267059,-2512.43823162,0.00042745,120]
[391852782,1760914267068,-1091.0,0.00042798,30]
[391852783,1760914267077,-983.40702761,0.0004282,2]
[391852784,1760914267087,-175176.41674662,0.00043,120]
[391852785,1760914267096,-164.0,0.00043,30]
[391852786,1760914267106,-250.0,0.00043,5]
[391852787,1760914267115,-1000.0,0.00043,120]
[391852788,1760914267124,-38999.80091733,0.00043,120]
[391852789,1760914267133,-3000.0,0.00043,120]
[391852790,1760914267143,-10030.6599693,0.00043,120]
[391852791,1760914267155,-556.0,0.00043,10]
[391852792,1760914267164,-300.0,0.00043,90]
[391852793,1760914267173,-2500.0,0.00043,120]
[391852794,1760914267182,-2500.0,0.00043,120]
[391852795,1760914267191,-200.0,0.00043,120]
[391852796,1760914267200,-308.82109804,0.00043008,2]
[391852797,1760914267209,-832.99243537,0.00043104,120]
[391852798,1760914267219,-600.0,0.00043287,60]
[391852799,1760914267228,-500.0,0.00043287,60]
[391852800,1760914267237,-2000.0,0.00043287,64]
[391852801,1760914267246,-152.0,0.00043291,5]
[391852802,1760914267255,-300.0,0.00043324,90]
[391852803,1760914267264,-2878.95807346,0.00043359,11]
[391852804,1760914267273,-300.0,0.000435,25]
[391852805,1760914267283,-1100.0,0.000435,120]
[391852806,1760914267292,-2500.0,0.000435,120]
[391852807,1760914267301,-2500.0,0.000435,120]
[391852808,1760914267311,-172.31,0.00043517,60]
[391852809,1760914267320,-832.99243537,0.00043553,120]
[391852810,1760914267330,-179.52362232,0.00043561,64]
[391852811,1760914267340,-1431.0920061,0.00043562,120]
[391852812,1760914267349,-771.6462175,0.000436,120]
[391852813,1760914267358,-2000.0,0.00043616,3]
[391852814,1760914267367,-649.75,0.000437,7]
[391852815,1760914267376,-1036.0,0.00043758,30]
[391852816,1760914267385,-219608.55190414,0.00043834,7]
[391852817,1760914267395,-500.0,0.00043834,120]
[391852818,1760914267404,-200.0,0.00043834,120]
[391852819,1760914267413,-600.0,0.00043835,60]
[391852820,1760914267422,-1546.15950909,0.00043835,120]
[391852821,1760914267431,-1000.0,0.0004388,120]
[391852822,1760914267440,-2719.0,0.00043947,70]
[391852823,1760914267450,-163.0,0.00044,30]
[391852824,1760914267459,-916.0,0.00044,120]
[391852825,1760914267468,-649.75,0.00044,7]
[391852826,1760914267477,-649.75,0.00044,7]
[391852827,1760914267486,-3219.59020007,0.00044,120]
[391852828,1760914267495,-1000.0,0.00044,120]
[391852829,1760914267504,-544.398845,0.00044,57]
[391852830,1760914267513,-2500.0,0.00044,120]
[391852831,1760914267523,-2500.0,0.00044,120]
[391852832,1760914267532,-200.0,0.00044,120]
[391852833,1760914267541,-215.86,0.00044,30]
[391852834,1760914267655,-832.99243537,0.00044002,120]
[391852835,1760914267665,-153.0,0.000441,120]
[391852836,1760914267674,-649.75,0.000441,7]
[391852837,1760914267684,-1036.0,0.00044209,30]
[391852838,1760914267694,-10030.6599693,0.000443,120]
[391852839,1760914267703,-5325.84038905,0.00044345,120]
[391852840,1760914267712,-40424.49922518,0.00044345,120]
[391852841,1760914267721,-49756.02698539,0.00044346,120]
[391852842,1760914267731,-1899.64714926,0.00044346,120]
[391852843,1760914267740,-1566.36224216,0.00044346,120]
[391852844,1760914267749,-1453.22726732,0.00044353,120]
[391852845,1760914267759,-2404.51238835,0.00044362,120]
[391852846,1760914267768,-737.03778027,0.00044365,120]
[391852847,1760914267777,-5017.76598116,0.00044365,120]
[391852848,1760914267787,-5017.76598116,0.00044368,120]
[391852849,1760914267796,-112645.61157212,0.0004437,120]
[391852850,1760914267805,-9216.65495377,0.00044372,120]
[391852851,1760914267814,-1453.22726732,0.00044372,120]
[391852852,1760914267823,-2691.17432973,0.00044377,120]
[391852853,1760914267832,-737.03778027,0.00044378,120]
[391852854,1760914267842,-1566.36224216,0.0004438,120]
[391852855,1760914267851,-5325.84038905,0.00044382,120]
[391852856,1760914267860,-798.61339381,0.00044382,120]
[391852857,1760914267870,-600.0,0.00044383,60]
[391852858,1760914267879,-305.72284047,0.00044383,60]
[391852859,1760914267888,-8704.281623,0.00044389,120]
[391852860,1760914267898,-8704.281623,0.00044391,120]
[391852861,1760914267907,-49756.02698539,0.00044393,120]
[391852862,1760914267917,-438.45944431,0.00044393,120]
[391852863,1760914267928,-5017.76598116,0.00044394,120]
[391852864,1760914267939,-1453.22726732,0.00044395,120]
[391852865,1760914267948,-1453.22726732,0.00044395,120]
[391852866,1760914267957,-5017.76598116,0.00044398,120]
[391852867,1760914267967,-8175.4027362,0.00044401,120]
[391852868,1760914267978,-9216.65495377,0.00044406,120]
[391852869,1760914267987,-3599.80063901,0.00044412,120]
[391852870,1760914267996,-798.61339381,0.00044415,120]
[391852871,1760914268005,-9216.65495377,0.00044415,120]
[391852872,1760914268015,-2691.17432973,0.00044425,120]
[391852873,1760914268024,-438.45944431,0.00044426,120]
[391852874,1760914268034,-438.45944431,0.00044427,120]
[391852875,1760914268043,-2404.51238835,0.00044432,120]
[391852876,1760914268053,-3599.80063901,0.00044433,120]
[391852877,1760914268063,-8704.281623,0.00044434,120]
[391852878,1760914268072,-1453.22726732,0.00044438,120]
[391852879,1760914268082,-2550.95816775,0.00044441,120]
[391852880,1760914268092,-2691.17432973,0.00044441,120]
[391852881,1760914268101,-2550.95816775,0.00044446,120]
[391852882,1760914268111,-40424.49922518,0.00044447,120]
[391852883,1760914268120,-798.61339381,0.00044448,120]
[391852884,1760914268131,-832.99243537,0.00044451,120]
[391852885,1760914268140,-798.61339381,0.00044454,120]
[391852886,1760914268149,-5325.84038905,0.00044455,120]
[391852887,1760914268159,-9216.65495377,0.00044455,120]
[391852888,1760914268169,-112645.61157212,0.00044456,120]
[391852889,1760914268179,-27550.99311408,0.00044458,120]
[391852890,1760914268188,-798.61339381,0.00044468,120]
[391852891,1760914268197,-27550.99311408,0.0004447,120]
[391852892,1760914268207,-8704.281623,0.00044476,120]
[391852893,1760914268216,-1453.22726732,0.00044477,120]
[391852894,1760914268226,-8704.281623,0.00044482,120]
[391852895,1760914268235,-27550.99311408,0.00044495,120]
[391852896,1760914268245,-2691.17432973,0.00044498,120]
[391852897,1760914268255,-5325.84038905,0.00044498,120]
[391852898,1760914268264,-438.45944431,0.00044498,120]
[391852899,1760914268273,-5325.84038905,0.00044499,120]
[391852900,1760914268283,-300.0,0.000445,26]
[391852901,1760914268291,-2500.0,0.000445,120]
[391852902,1760914268301,-8175.4027362,0.00044502,120]
[391852903,1760914268310,-2691.17432973,0.00044504,120]
[391852904,1760914268319,-3599.80063901,0.00044509,120]
[391852905,1760914268328,-112645.61157212,0.00044512,120]
[391852906,1760914268338,-1453.22726732,0.00044514,120]
[391852907,1760914268347,-112645.61157212,0.00044519,120]
[391852908,1760914268356,-2404.51238835,0.00044522,120]
[391852909,1760914268366,-3599.80063901,0.00044528,120]
[391852910,1760914268375,-8704.281623,0.00044528,120]
[391852911,1760914268385,-1899.64714926,0.00044532,120]
[391852912,1760914268394,-5325.84038905,0.00044534,120]
[391852913,1760914268404,-3599.80063901,0.00044539,120]
[391852914,1760914268413,-5017.76598116,0.00044541,120]
[391852915,1760914268422,-737.03778027,0.00044543,120]
[391852916,1760914268432,-5017.76598116,0.00044543,120]
[391852917,1760914268441,-798.61339381,0.00044557,120]
[391852918,1760914268450,-1899.64714926,0.00044568,120]
[391852919,1760914268460,-8175.4027362,0.0004457,120]
[391852920,1760914268469,-1899.64714926,0.00044573,120]
[391852921,1760914268480,-5017.76598116,0.00044574,120]
[391852922,1760914268489,-2550.95816775,0.00044579,120]
[391852923,1760914268499,-27550.99311408,0.0004458,120]
[391852924,1760914268508,-8175.4027362,0.00044586,120]
[391852925,1760914268517,-35835.56461642,0.00044588,120]
[391852926,1760914268765,-419.59381082,0.00036438,8]
[391852927,1760914268778,-80.40618918,0.00036438,8]
[391852928,1760914268788,-368.87559842,0.00036712,8]
[391852929,1760914268798,-618.32,0.00037534,8]
[391852930,1760914268808,-618.32,0.00037808,8]
[391852931,1760914268817,-618.32,0.00038082,8]
[391852932,1760914268826,-618.32,0.00038356,8]
[391852933,1760914268835,-618.32,0.0003863,8]
[391852934,1760914268845,-618.32,0.00038904,8]
[391852935,1760914268854,-453.93575285,0.00039178,8]
[391852992,1760915432179,-250.0,0.00017,2]
[391852995,1760915432196,-194.24,0.00017988,2]
[391852998,1760915432208,-1046.0,0.00018699,2]
[391852999,1760915432219,-236.59533907,0.000187,30]
[391853001,1760915432228,-2295.68125758,0.000187,2]
[391853002,1760915432240,-204.31874242,0.000187,2]
[391853003,1760915432250,-253.87258603,0.000187,2]
[391853004,1760915432300,-2246.12741397,0.000187,2]
[391853005,1760915432310,-300.0,0.000187,2]
[391853006,1760915432321,-160.0,0.00024482,2]
[391853007,1760915432331,-166.47344729,0.00025864,2]
[391853008,1760915432341,-474.93784978,0.0002661,2]
[391853009,1760915432352,-1000.0,0.000268,2]
[391853010,1760915432363,-1200.0,0.00027637,2]
[391853011,1760915432372,-1200.0,0.0002999,2]
[391853012,1760915432382,-300.0,0.00030499,2]
[391853013,1760915432392,-300.0,0.00030499,2]
[391853014,1760915432402,-1000.0,0.000305,2]
[391853015,1760915432412,-156.0,0.00031,120]
[391853016,1760915432422,-2006.13199386,0.00032,120]
[391853017,1760915432431,-902.0,0.00032816,2]
[391853018,1760915432440,-1183.0,0.00032816,2]
[391853019,1760915432449,-2547.0,0.00032816,2]
[391853020,1760915432459,-580.1666399,0.00032876,8]
[391853021,1760915432469,-226.92318924,0.00032876,8]
[391853022,1760915432482,-500.0,0.00032876,8]
[391853023,1760915432492,-150.0,0.00032998,2]
[391853024,1760915432501,-2006.13199386,0.00033,120]
[391853025,1760915432511,-233.94,0.00033896,7]
[391853026,1760915432522,-2006.13199386,0.000339,120]
[391853027,1760915432532,-200.0,0.00034153,2]
[391853028,1760915432542,-228.44623059,0.00034323,2]
[391853030,1760915432553,-155.0,0.00034323,2]
[391853032,1760915432562,-155.0,0.00034323,2]
[391853034,1760915432571,-155.0,0.00034323,2]
[391853036,1760915432581,-150.0,0.00034323,2]
[391853039,1760915432590,-253.038,0.00034326,38]
[391853041,1760915432600,-2006.13199386,0.00035,120]
[391853045,1760915432610,-791.34327578,0.00035,7]
[391853048,1760915432620,-156.0,0.000352,120]
[391853051,1760915432629,-902.0,0.00035816,2]
[391853053,1760915432638,-1183.0,0.00035816,2]
[391853057,1760915432647,-532.41604535,0.00035816,2]
[391853059,1760915432659,-2014.58395465,0.00035816,2]
[391853061,1760915432668,-150.0,0.00036,60]
[391853063,1760915432677,-2006.13199386,0.00036,120]
[391853065,1760915432687,-166.66,0.00036456,30]
[391853067,1760915432696,-500.0,0.00036715,120]
[391853069,1760915432706,-666.0,0.00037045,3]
[391853071,1760915432715,-985.61764048,0.000371,120]
[391853073,1760915432727,-1020.51435338,0.000371,120]
[391853075,1760915432736,-389.85,0.000371,7]
[391853077,1760915432745,-166.66,0.00037224,30]
[391853079,1760915432755,-152.0,0.00037679,3]
[391853080,1760915432764,-225.12570774,0.00037815,37]
[391853081,1760915432808,-503.53652257,0.00032998,7]
[391853082,1760915432817,-300.08661923,0.00032998,7]
[391853083,1760915432827,-447.62045917,0.00032998,7]
[391853084,1760915432837,-500.0,0.00032998,7]
[391853085,1760915432846,-500.0,0.00032998,7]
[391853086,1760915432857,-314.7698014,0.00032998,7]
[391853087,1760915432867,-500.0,0.00032998,7]
[391853088,1760915432876,-462.98053215,0.00032998,7]
[391853091,1760915438145,-59.01550813,0.00032998,7]
[391853092,1760915438155,-500.0,0.00032998,7]
[391853093,1760915438164,-59.34401147,0.00032998,7]
[391853094,1760915438259,-440.65598853,0.00032998,7]
[391853095,1760915438270,-500.0,0.00032998,7]
[391853096,1760915438280,-500.0,0.00032998,7]
[391853097,1760915438289,-616.5,0.00032998,7]
[391853098,1760915438299,-500.0,0.00032998,7]
[391853099,1760915438310,-500.0,0.00032998,7]
[391853100,1760915438319,-500.0,0.00032998,7]
[391853101,1760915438329,-258.36429226,0.00037815,37]
[391853102,1760915438338,-166.66,0.00037991,30]
[391853103,1760915438347,-1652.45825461,0.000382,120]
[391853104,1760915438359,-353.67373925,0.000382,120]
[391853105,1760915438369,-250.0,0.00038402,2]
[391853107,1760915438379,-182.99,0.00038552,2]
[391853108,1760915438388,-250.0,0.00038729,7]
[391853109,1760915438398,-166.66,0.00038759,30]
[391853110,1760915438407,-159.97200512,0.00038766,2]
[391853111,1760915438416,-325.85921903,0.00038866,2]
[391853112,1760915438427,-745.83216302,0.00038866,2]
[391853115,1760915440258,-547.05,0.00038866,2]
[391853116,1760915440269,-1426.67463812,0.00038866,2]
[391853117,1760915440380,-954.58397983,0.00038866,2]
[391853118,1760915440389,-2006.13199386,0.000394,120]
[391853119,1760915440399,-156.0,0.000394,120]
[391853120,1760915440408,-159.97200512,0.0003948,2]
[391853121,1760915440417,-150.99,0.00039484,2]
[391853122,1760915440426,-1245.64,0.00039484,2]
[391853123,1760915440436,-166.66,0.00039526,30]
[391853124,1760915440445,-5800.0,0.00039878,14]
[391853125,1760915440454,-161.76830818,0.00039925,30]
[391853126,1760915440463,-500.0,0.00039999,31]
[391853127,1760915440478,-294.15867111,0.00039999,31]
[391853128,1760915440487,-359.89638272,0.00039999,31]
[391853129,1760915440496,-500.0,0.00039999,31]
[391853130,1760915440505,-224.8477785,0.00039999,31]
[391853131,1760915440514,-256.57092456,0.00039999,31]
[391853132,1760915440525,-2499.99,0.0004,120]
[391853133,1760915440535,-2499.99,0.0004,120]
[391853134,1760915440546,-196.6,0.0004,120]
[391853135,1760915440556,-2499.99,0.0004,120]
[391853136,1760915440565,-2499.99,0.0004,120]
[391853137,1760915440575,-3864.30855607,0.0004,60]
[391853138,1760915440586,-2326.9,0.0004,60]
[391853139,1760915440597,-23808.79144393,0.0004,60]
[391853140,1760915440606,-30000.0,0.0004,60]
[391853141,1760915440616,-30000.0,0.0004,60]
[391853142,1760915440625,-30000.0,0.0004,60]
[391853143,1760915440635,-31844.07589512,0.0004,60]
[391853144,1760915440644,-2500.0,0.0004,120]
[391853145,1760915440653,-159.97200512,0.00040194,2]
[391853146,1760915440662,-389.85,0.000402,7]
[391853147,1760915440671,-166.66,0.00040294,30]
[391853148,1760915440680,-1199.86,0.00040395,2]
[391853149,1760915440689,-1199.86,0.00040395,2]
[391853150,1760915440698,-1199.86,0.00040395,2]
[391853151,1760915440707,-1199.86,0.00040395,2]
[391853152,1760915440717,-1199.86,0.00040395,2]
[391853153,1760915440725,-1193.49,0.00040395,2]
[391853154,1760915440734,-1199.86,0.00040395,2]
[391853155,1760915440743,-2006.13199386,0.000405,120]
[391853156,1760915440752,-2500.0,0.000405,120]
[391853157,1760915440762,-500.0,0.0004085,5]
[391853158,1760915440774,-2500.0,0.00041,120]
[391853159,1760915440783,-259.81994574,0.00041096,2]
[391853160,1760915440793,-1200.0,0.000411,2]
[391853161,1760915440802,-571.0,0.000411,2]
[391853162,1760915440812,-1000.0,0.00041398,10]
[391853163,1760915440822,-2500.0,0.000415,120]
[391853164,1760915440831,-153.0,0.00041766,60]
[391853165,1760915440840,-153.0,0.00041766,60]
[391853166,1760915440850,-153.0,0.00041766,60]
[391853167,1760915440859,-153.0,0.00041766,60]
[391853168,1760915440868,-157.0,0.00041768,60]
[391853169,1760915440877,-157.0,0.00041768,60]
[391853170,1760915440887,-157.0,0.00041768,60]
[391853171,1760915440896,-157.0,0.00041768,60]
[391853172,1760915440906,-157.0,0.00041768,60]
[391853173,1760915440915,-157.0,0.00041768,60]
[391853174,1760915440924,-157.0,0.00041768,60]
[391853175,1760915440933,-157.0,0.00041768,60]
[391853176,1760915440943,-157.0,0.00041768,60]
[391853177,1760915440952,-157.0,0.00041768,60]
[391853178,1760915440961,-157.0,0.00041768,60]
[391853179,1760915440971,-157.0,0.00041768,60]
[391853180,1760915440980,-157.0,0.00041768,60]
[391853181,1760915440989,-157.0,0.00041768,60]
[391853182,1760915440999,-153.0,0.00041777,60]
[391853183,1760915441008,-153.0,0.00041777,60]
[391853184,1760915441017,-153.0,0.00041777,60]
[391853185,1760915441027,-153.0,0.00041777,60]
[391853186,1760915441036,-184.0,0.0004178,60]
[391853187,1760915441045,-184.0,0.0004178,60]
[391853188,1760915441055,-184.0,0.0004178,60]
[391853189,1760915441064,-184.0,0.0004178,60]
[391853190,1760915441073,-184.0,0.0004178,60]
[391853191,1760915441083,-184.0,0.0004178,60]
[391853192,1760915441092,-184.0,0.0004178,60]
[391853193,1760915441102,-184.0,0.0004178,60]
[391853194,1760915441112,-184.0,0.0004178,60]
[391853195,1760915441121,-2006.13199386,0.000418,120]
[391853196,1760915441131,-2500.0,0.00042,120]
[391853197,1760915441140,-500.0,0.00042356,2]
[391853198,1760915441149,-150.0,0.00042356,2]
[391853199,1760915441159,-500.0,0.00042411,2]
[391853200,1760915441168,-150.0,0.00042411,2]
[391853201,1760915441178,-500.0,0.00042466,2]
[391853202,1760915441187,-190.0,0.00042466,2]
[391853203,1760915441196,-2500.0,0.000425,120]
[391853204,1760915441206,-642.75296998,0.0004252,2]
[391853205,1760915441215,-152.0,0.00042589,4]
[391853206,1760915441225,-305.72284047,0.00042856,60]
[391853207,1760915441234,-500.0,0.00042856,60]
[391853208,1760915441243,-225.0,0.00043,90]
[391853209,1760915441253,-2500.0,0.00043,120]
[391853210,1760915441263,-225.0,0.00043014,90]
[391853211,1760915441272,-500.0,0.00043404,60]
[391853212,1760915441281,-156.0,0.000435,120]
[391853213,1760915441290,-2500.0,0.000435,120]
[391853214,1760915441300,-389.85,0.000437,7]
[391853215,1760915441310,-989.0,0.00043758,30]
[391853216,1760915441319,-500.0,0.00043845,90]
[391853217,1760915441328,-500.0,0.00043845,90]
[391853218,1760915441337,-500.0,0.00043845,90]
[391853219,1760915441347,-500.0,0.00043845,90]
[391853220,1760915441356,-500.0,0.00043935,120]
[391853221,1760915441366,-500.0,0.00043935,120]
[391853222,1760915441375,-500.0,0.00043935,120]
[391853223,1760915441385,-631.0,0.00043935,120]
[391853224,1760915441396,-500.0,0.00043935,120]
[391853225,1760915441406,-500.0,0.00043935,120]
[391853226,1760915441417,-500.0,0.00043935,120]
[391853227,1760915441427,-500.0,0.00043935,120]
[391853228,1760915441438,-500.0,0.00043935,120]
[391853229,1760915441449,-500.0,0.00043935,120]
[391853230,1760915441460,-500.0,0.00043935,120]
[391853231,1760915441472,-500.0,0.00043935,120]
[391853232,1760915441482,-500.0,0.00043935,120]
[391853233,1760915441491,-500.0,0.00043935,120]
[391853234,1760915441500,-500.0,0.00043935,120]
[391853235,1760915441510,-500.0,0.00043935,120]
[391853236,1760915441519,-500.0,0.00043935,120]
[391853237,1760915441529,-500.0,0.00043935,120]
[391853238,1760915441542,-500.0,0.00043935,120]
[391853239,1760915441551,-500.0,0.00043935,120]
[391853240,1760915441561,-500.0,0.00043935,120]
[391853241,1760915441571,-836.0,0.00043935,120]
[391853242,1760915441582,-500.0,0.00043952,60]
[391853243,1760915441592,-389.85,0.00044,7]
[391853244,1760915441601,-389.85,0.00044,7]
[391853245,1760915441610,-150.0,0.00044,57]
[391853246,1760915441620,-200.0,0.00044,120]
[391853247,1760915441630,-2500.0,0.00044,120]
[391853248,1760915441640,-989.0,0.00044209,30]
[391853249,1760915441650,-1273.20578807,0.00044343,120]
[391853250,1760915441660,-1316.6649934,0.00044343,120]
[391853251,1760915441670,-7108.00385507,0.00044343,120]
[391853252,1760915441682,-1167.9146766,0.00044347,120]
[391853253,1760915441692,-1167.9146766,0.00044347,120]
[391853254,1760915441702,-542.75632836,0.00044351,120]
[391853255,1760915441711,-1000.0,0.00044354,2]
[391853256,1760915441720,-2500.0,0.00044354,2]
[391853257,1760915441730,-760.83434129,0.00044355,120]
[391853258,1760915441739,-7108.00385507,0.00044356,120]
[391853259,1760915441748,-6139.35105613,0.00044357,120]
[391853260,1760915441759,-4743.16963134,0.00044357,120]
[391853261,1760915441769,-187.91119042,0.00044365,120]
[391853262,1760915441779,-2335.8293532,0.00044366,120]
[391853263,1760915441791,-760.8343413,0.00044366,120]
[391853264,1760915441803,-5483.78896916,0.00044366,120]
[391853265,1760915441814,-1524.26888873,0.00044368,120]
[391853266,1760915441823,-2335.8293532,0.00044369,120]
[391853267,1760915441833,-7108.00385507,0.0004437,120]
[391853268,1760915441843,-15523.71892453,0.0004437,120]
[391853269,1760915441853,-207.60389533,0.0004437,120]
[391853270,1760915441864,-1316.6649934,0.00044371,120]
[391853271,1760915441875,-1273.20578807,0.00044371,120]
[391853272,1760915441886,-760.83434129,0.00044373,120]
[391853273,1760915441897,-329.05714606,0.00044376,120]
[391853274,1760915441907,-5483.78896916,0.00044377,120]
[391853275,1760915441919,-7108.00385507,0.00044378,120]
[391853276,1760915441929,-542.75632836,0.00044379,120]
[391853277,1760915441938,-207.60389533,0.0004438,120]
[391853278,1760915441949,-329.05714606,0.00044382,120]
[391853279,1760915441959,-5774.92846074,0.00044383,120]
[391853280,1760915441971,-329.05714606,0.00044383,120]
[391853281,1760915441981,-760.83434129,0.00044385,120]